bitfinex-derivatives/quotes_ETHF0:USTF0_20250430
["timestamp","ask_amount","ask_price","bid_price","bid_amount"]
[1746026455676,6.98991487,1763.2,1763.1,1.1343]
[1746026455871,6.98991487,1763.2,1763.1,11.75193398]
[1746026456271,8.73551487,1763.2,1763.1,11.75193398]
[1746026456670,8.73551487,1763.2,1763.1,10.61763398]
[1746026457374,1.1343,1763.1,1763.0,4.96232]
[1746026457876,2.7776,1763.1,1763.0,15.57995398]
[1746026458375,2.7776,1763.1,1763.0,3.828]
[1746026458576,10.9854,1763.1,1763.0,1.15509001]
[1746026459071,1.1345,1762.8,1762.7,1.13455]
[1746026459272,4.9545,1762.8,1762.7,11.75218398]
[1746026461377,2.83668,1762.6,1762.3,1.13476]
[1746026461680,6.67595,1762.5,1762.4,12.24543398]
[1746026461881,7.80885,1762.5,1762.4,10.61763398]
[1746026462076,8.93665,1762.5,1762.4,10.61763398]
[1746026462579,1.13482,1762.3,1762.2,3.828]
[1746026462878,1.13482,1762.3,1762.2,14.44563398]
[1746026463077,1.13482,1762.4,1762.2,14.44563398]
[1746026463281,2.78772,1762.4,1762.3,1.6667]
[1746026463473,5.4685,1762.5,1762.3,12.28433398]
[1746026463678,2.78748,1762.7,1762.6,1.13463]
[1746026463875,1.13458,1762.7,1762.6,1.13463]
[1746026464081,1.13458,1762.7,1762.6,11.75226398]
[1746026464474,10.81017487,1762.8,1762.7,1.13456]
[1746026464775,6.99012487,1762.8,1762.7,13.41889398]
[1746026464980,10.81112487,1762.8,1762.7,13.41889398]
[1746026465179,10.81112487,1762.8,1762.7,17.24689398]
[1746026465378,9.67662487,1762.8,1762.7,17.24689398]
[1746026465682,10.81112487,1762.8,1762.7,17.24689398]
[1746026465983,9.67662487,1762.8,1762.7,17.24689398]
[1746026466379,2.8659,1763.0,1762.9,1.13443]
[1746026466683,3.821,1763.0,1762.9,11.75206398]
[1746026467087,3.821,1763.0,1762.9,13.49976398]
[1746026467384,4.03652,1763.3,1763.2,1.13424]
[1746026467684,1.13424,1763.2,1763.1,11.75191398]
[1746026468883,1.13424,1763.2,1763.1,12.36533398]
[1746026469187,1.7394,1763.2,1762.9,1.13442]
[1746026469384,1.13443,1763.0,1762.9,2.85542]
[1746026469585,1.228,1763.1,1763.0,1.13437]
[1746026469786,5.049,1763.1,1763.0,13.47300398]
[1746026470291,3.821,1763.1,1763.0,13.47300398]
[1746026470791,4.9553,1763.1,1763.0,13.47300398]
[1746026471181,4.9553,1763.1,1763.0,17.30100398]
[1746026471589,3.821,1763.1,1763.0,17.30100398]
[1746026471790,4.9553,1763.1,1763.0,17.30100398]
[1746026472188,4.9553,1763.1,1763.0,13.47300398]
[1746026472387,3.821,1763.1,1762.7,3.2078]
[1746026472580,1.1345,1762.8,1762.7,5.94196]
[1746026472993,1.1345,1762.8,1762.7,16.55959398]
[1746026473198,4.9545,1762.8,1762.7,16.55959398]
[1746026473397,4.9545,1762.8,1762.7,14.95999398]
[1746026474100,3.82,1762.8,1762.7,18.78799398]
[1746026474995,3.95551,1763.0,1762.9,1.13443]
[1746026475192,3.2078,1763.1,1763.0,1.13437]
[1746026475193,4.34214,1763.1,1763.0,1.13437]
[1746026475500,4.95434,1763.1,1763.0,13.39220398]
[1746026475692,3.82,1763.1,1763.0,12.25783398]
[1746026475997,3.82,1763.1,1763.0,13.39220398]
[1746026476200,3.82,1763.1,1763.0,17.22020398]
[1746026476895,1.13414,1763.4,1763.3,1.13418]
[1746026477198,3.82,1763.4,1763.3,15.57981398]
[1746026477895,3.82,1763.4,1763.3,16.80221398]
[1746026478296,3.2078,1763.7,1763.6,1.13398]
[1746026478499,1.13392,1763.7,1763.6,11.75156398]
[1746026478694,73.854,1763.8,1763.7,1.13392]
[1746026478894,73.854,1763.8,1763.7,13.38285398]
[1746026479100,3.82,1763.9,1763.7,16.07693398]
[1746026479296,3.82,1764.0,1763.8,10.61763398]
[1746026479487,1.13379,1763.9,1763.8,11.75145398]
[1746026479694,4.95377,1764.0,1763.9,1.13379]
[1746026479997,4.95377,1764.0,1763.9,13.38272398]
[1746026480194,4.95377,1764.0,1763.9,2.76509]
[1746026480397,4.95377,1764.0,1763.9,1.6313]
[1746026480995,4.95377,1764.0,1763.9,2.76509]
[1746026482000,4.95377,1764.0,1763.9,1.6313]
[1746026482197,1.13385,1763.8,1763.7,1.13388]
[1746026482499,4.04959,1763.9,1763.8,10.61763398]
[1746026482695,1.13385,1763.8,1763.7,1.1339]
[1746026482902,2.88545,1763.8,1763.7,1.1339]
[1746026483195,1.1642,1763.9,1763.8,1.13385]
[1746026483401,4.95378,1764.0,1763.9,1.13379]
[1746026483603,4.95378,1764.0,1763.9,11.75142398]
[1746026483900,4.95378,1764.0,1763.9,13.46712398]
[1746026484095,4.34145,1764.2,1764.1,1.13366]
[1746026484298,3.819,1764.2,1764.1,11.75129398]
[1746026484501,4.9526,1764.2,1764.1,1.13366]
[1746026484690,6.6593,1764.2,1764.1,11.75129398]
[1746026484890,5.5257,1764.2,1764.1,11.75129398]
[1746026485298,6.6593,1764.2,1764.1,10.61763398]
[1746026486000,5.5257,1764.2,1764.1,11.75129398]
[1746026486398,3.819,1764.2,1764.1,11.75129398]
[1746026487605,4.9526,1764.2,1764.1,11.75129398]
[1746026487800,4.9526,1764.2,1764.1,1.6376]
[1746026488097,1.13366,1764.1,1764.0,3.828]
[1746026488306,1.13373,1764.0,1763.9,3.2078]
[1746026488703,2.76913,1764.0,1763.9,3.2078]
[1746026488904,2.76913,1764.0,1763.9,4.34159]
[1746026489306,2.76913,1764.0,1763.9,1.13379]
[1746026489708,1.13379,1763.9,1763.8,2.77141]
[1746026490006,1.6354,1764.0,1763.9,1.13379]
[1746026490207,2.76913,1764.0,1763.9,13.38902398]
[1746026490407,2.76913,1764.0,1763.9,2.77139]
[1746026491907,1.6354,1764.0,1763.9,2.77139]
[1746026492300,2.76913,1764.0,1763.9,2.77139]
[1746026493005,1.13379,1763.9,1763.8,1.13381]
[1746026493206,2.88559,1763.9,1763.8,1.13381]
[1746026493405,1.13375,1764.0,1763.9,1.13379]
[1746026493609,1.13375,1764.0,1763.9,13.51462398]
[1746026493810,2.84745,1764.0,1763.9,2.89699]
[1746026493999,1.13379,1763.9,1763.8,1.13381]
[1746026494202,2.84749,1763.9,1763.8,1.13381]
[1746026494400,5.5317,1763.9,1763.4,4.389]
[1746026494602,1.13392,1763.7,1763.6,10.61763398]
[1746026495009,1.13402,1763.6,1763.5,1.13398]
[1746026495304,4.95202,1763.6,1763.5,13.43391398]
[1746026495502,6.66572,1763.6,1763.5,13.43391398]
[1746026495697,5.5317,1763.6,1763.5,13.43391398]
[1746026495902,6.66568,1763.6,1763.5,10.61763398]
[1746026496105,6.66568,1763.6,1763.4,1.13406]
[1746026496106,1.13411,1763.4,1763.3,2.81643]
[1746026496302,1.13411,1763.4,1763.3,13.43406398]
[1746026496504,2.83549,1763.3,1763.0,4.34212]
[1746026496706,1.1343,1763.1,1763.0,10.61763398]
[1746026496900,1.13438,1763.1,1763.0,1.13435]
[1746026497102,2.86532,1763.1,1763.0,1.13437]
[1746026497306,1.731,1763.1,1763.0,1.13437]
[1746026497604,2.8653,1763.1,1763.0,1.13437]
[1746026497907,7.0258,1763.2,1763.0,1.13437]
[1746026497908,3.818,1763.2,1763.1,1.1343]
[1746026498105,3.818,1763.2,1763.1,13.35163398]
[1746026498409,4.95224,1763.2,1763.1,13.35163398]
[1746026498611,6.68324,1763.2,1763.1,13.35163398]
[1746026498807,6.68324,1763.2,1762.8,46.84402]
[1746026498808,1.13443,1762.9,1762.8,41.93443]
[1746026499114,1.1345,1762.8,1762.7,2.73422]
[1746026499409,3.818,1762.9,1762.7,1.13454]
[1746026499709,3.818,1762.9,1762.7,10.61763398]
[1746026499710,7.86658,1762.9,1762.7,10.61763398]
[1746026499904,5.0011,1762.9,1762.8,11.75213398]
[1746026500712,6.7515,1762.9,1762.8,11.75213398]
[1746026500905,2.26703,1763.1,1763.0,1.13437]
[1746026501104,6.086,1763.1,1763.0,11.75200398]
[1746026501310,7.83644,1763.1,1763.0,1.13437]
[1746026501513,7.83645,1763.1,1763.0,1.13437]
[1746026501707,1.13437,1763.0,1762.8,3.828]
[1746026501904,2.88483,1762.9,1762.8,3.828]
[1746026502106,4.06793,1762.9,1762.8,3.828]
[1746026502308,1.13456,1762.7,1762.6,1.13462]
[1746026502607,1.13456,1762.7,1762.6,10.61763398]
[1746026502813,9.86309,1762.8,1762.2,2.8372]
[1746026503013,3.91753,1762.6,1762.5,10.61763398]
[1746026503213,5.9907,1762.6,1762.4,11.75234398]
[1746026503410,4.9284,1762.5,1762.4,11.75234398]
[1746026503709,7.69939,1762.5,1762.4,11.75238398]
[1746026504110,7.69939,1762.5,1762.0,3.2078]
[1746026504111,2.83689,1762.4,1762.0,3.2078]
[1746026504310,2.83689,1762.4,1762.0,10.61763398]
[1746026504311,1.13495,1762.1,1762.0,10.61763398]
[1746026504613,1.13501,1762.0,1761.9,1.6652]
[1746026504813,2.77131,1762.0,1761.9,1.6652]
[1746026505017,2.77131,1762.0,1761.9,12.28283398]
[1746026505214,2.77131,1762.0,1761.9,3.828]
[1746026505718,1.6363,1762.0,1761.9,15.58071398]
[1746026505911,4.9284,1762.1,1762.0,1.13501]
[1746026506214,4.9284,1762.1,1762.0,17.20634398]
[1746026506215,3.819,1762.1,1762.0,17.20634398]
[1746026507212,4.95395,1762.1,1762.0,3.828]
[1746026507418,4.95395,1762.1,1762.0,4.96301]
[1746026507614,5.5802,1762.1,1762.0,15.58064398]
[1746026509016,3.819,1762.1,1762.0,15.58064398]
[1746026510205,2.3798,1762.4,1762.3,1.13482]
[1746026510412,5.85562487,1762.6,1762.5,1.13469]
[1746026510614,5.85562487,1762.6,1762.5,11.75232398]
[1746026510615,9.67662487,1762.6,1762.5,11.75232398]
[1746026511207,4.95563,1762.6,1762.5,15.58032398]
[1746026511412,3.821,1762.6,1762.5,15.58032398]
[1746026512113,4.95563,1762.6,1762.5,3.828]
[1746026512311,14.01905487,1762.6,1762.5,3.828]
[1746026512513,19.01905487,1762.6,1762.5,3.828]
[1746026512812,14.01905487,1762.6,1762.5,4.96269]
[1746026513009,14.01905487,1762.6,1762.5,3.828]
[1746026513214,14.01905487,1762.6,1762.5,1.13469]
[1746026513413,14.01905487,1762.6,1762.5,0.56402795]
[1746026514016,9.67662487,1762.6,1762.5,11.18166193]
[1746026514217,9.67662487,1762.6,1762.5,15.00966193]
[1746026514718,10.81125487,1762.6,1762.5,16.70896193]
[1746026515410,10.81125487,1762.6,1762.5,5.5273]
[1746026515722,9.67662487,1762.6,1762.5,17.27962398]
[1746026516619,4.95563,1762.6,1762.5,17.27962398]
[1746026516921,3.821,1762.6,1762.5,17.27962398]
[1746026517124,4.95563,1762.6,1762.5,17.27962398]
[1746026517821,3.821,1762.6,1762.5,17.27962398]
[1746026518021,4.95563,1762.6,1762.5,17.27962398]
[1746026518221,4.95563,1762.6,1762.5,13.45162398]
[1746026518422,3.821,1762.6,1762.5,13.45162398]
[1746026518624,70.015,1762.8,1762.7,1.13456]
[1746026518813,5.85562487,1762.9,1762.8,1.1345]
[1746026519018,3.821,1762.9,1762.8,13.52413398]
[1746026519218,3.821,1762.9,1762.8,17.35213398]
[1746026519420,4.95543,1762.9,1762.8,17.35213398]
[1746026519818,3.821,1762.9,1762.8,17.35213398]
[1746026520418,3.821,1762.9,1762.8,20.55993398]
[1746026520625,3.821,1762.9,1762.8,17.35213398]
[1746026520818,4.95543,1762.9,1762.8,17.35213398]
[1746026521229,3.821,1762.9,1762.8,13.52413398]
[1746026521520,3.821,1762.9,1762.8,16.73193398]
[1746026522129,3.821,1762.9,1762.8,20.55993398]
[1746026522627,4.34202,1763.3,1763.2,1.13424]
[1746026522817,5.5434,1763.3,1763.2,11.75187398]
[1746026523021,73.2478,1763.5,1763.4,1.13411]
[1746026523323,78.20189,1763.5,1763.4,1.13411]
[1746026523524,1.13418,1763.3,1763.2,3.828]
[1746026523825,4.34198,1763.3,1763.2,3.828]
[1746026524128,1.13437,1763.0,1762.9,1.13438]
[1746026524324,1.13437,1763.0,1762.9,13.51421398]
[1746026524720,2.80927,1763.0,1762.9,13.51421398]
[1746026524925,1.6749,1763.0,1762.9,13.51421398]
[1746026525125,1.6749,1763.0,1762.9,17.34221398]
[1746026525326,3.82,1763.1,1763.0,1.13437]
[1746026525525,3.82,1763.1,1763.0,13.51420398]
[1746026525526,4.9543,1763.1,1763.0,13.51420398]
[1746026526129,4.9543,1763.1,1763.0,17.34220398]
[1746026526528,3.82,1763.1,1763.0,17.34220398]
[1746026526727,1.6749,1763.3,1763.2,1.13424]
[1746026526728,3.82,1763.3,1763.2,1.13424]
[1746026527027,3.82,1763.3,1763.2,11.75187398]
[1746026527330,3.82,1763.3,1763.2,17.18147398]
[1746026527830,4.95418,1763.3,1763.2,3.828]
[1746026528027,6.70968,1763.3,1763.2,3.828]
[1746026528229,6.70969,1763.3,1763.2,1.13424]
[1746026528622,6.70969,1763.3,1763.2,11.75187398]
[1746026529038,3.82,1763.3,1763.2,11.75187398]
[1746026529230,4.95418,1763.3,1763.2,4.96224]
[1746026529423,6.70968,1763.3,1763.2,4.96224]
[1746026529724,3.82,1763.3,1763.2,15.57987398]
[1746026530225,4.95418,1763.3,1763.2,3.828]
[1746026530530,6.56298,1763.3,1763.2,4.96224]
[1746026530726,6.56298,1763.3,1763.2,3.828]
[1746026531027,11.56298,1763.3,1763.2,3.828]
[1746026531228,1.1345,1762.9,1762.8,1.13445]
[1746026531630,1.1345,1762.9,1762.8,11.75208398]
[1746026531931,1.1345,1762.8,1762.7,5.96625]
[1746026532325,2.74327,1762.9,1762.8,1.1345]
[1746026532522,4.95438,1763.0,1762.9,1.13443]
[1746026532727,4.95438,1763.0,1762.9,11.75206398]
[1746026532927,4.95438,1763.0,1762.9,2.75833]
[1746026533123,6.0889,1763.2,1763.1,1.1343]
[1746026533325,6.0889,1763.2,1763.1,11.75193398]
[1746026533525,7.22314,1763.2,1763.1,11.75193398]
[1746026534129,1.1343,1763.1,1763.0,1.6566]
[1746026534332,1.13443,1762.9,1762.8,1.6566]
[1746026534535,1.1345,1762.8,1762.7,3.2078]
[1746026534738,2.7801,1762.8,1762.7,14.95999398]
[1746026535028,4.95448,1762.9,1762.8,1.1345]
[1746026535225,3.82,1762.9,1762.8,13.40873398]
[1746026535431,4.95443,1762.9,1762.8,13.40873398]
[1746026535635,3.82,1762.9,1762.8,13.40873398]
[1746026535827,4.95443,1762.9,1762.8,13.40873398]
[1746026536138,5.4656,1762.9,1762.8,13.40873398]
[1746026536630,3.82,1762.9,1762.8,13.40873398]
[1746026536833,4.95443,1762.9,1762.8,13.40873398]
[1746026537132,3.82,1762.9,1762.8,13.40873398]
[1746026537335,4.95443,1762.9,1762.8,13.40873398]
[1746026537534,4.95443,1762.9,1762.8,11.75213398]
[1746026539537,4.95443,1762.9,1762.8,1.1345]
[1746026540033,4.95443,1762.9,1762.8,13.52533398]
[1746026540234,3.82,1762.9,1762.8,13.52533398]
[1746026541138,4.95443,1762.9,1762.8,17.35333398]
[1746026542339,3.82,1762.9,1762.8,13.52533398]
[1746026542537,4.95443,1762.9,1762.8,11.75213398]
[1746026542742,6.60143,1762.9,1762.8,11.75213398]
[1746026543637,6.60143,1762.9,1762.8,13.44213398]
[1746026544454,9.06342487,1763.3,1763.2,1.13424]
[1746026544649,9.06342487,1763.3,1763.2,11.75187398]
[1746026544650,9.68762487,1763.3,1763.2,11.75187398]
[1746026545153,9.68762487,1763.3,1763.2,17.26987398]
[1746026545351,10.82180487,1763.3,1763.2,17.26987398]
[1746026545951,11.94202487,1763.3,1763.2,17.26987398]
[1746026546150,13.07620487,1763.3,1763.2,13.44187398]
[1746026548656,11.94202487,1763.3,1763.0,1.13429]
[1746026548856,2.80361,1763.2,1763.1,10.61763398]
[1746026549055,2.80361,1763.2,1763.1,11.75191398]
[1746026549455,1.6693,1763.2,1763.1,11.75191398]
[1746026550058,2.80354,1763.2,1763.1,11.75191398]
[1746026550852,1.6693,1763.2,1763.1,11.75191398]
[1746026551056,2.80354,1763.2,1763.1,11.75191398]
[1746026552263,13.07625487,1763.3,1763.2,1.13424]
[1746026552455,13.07625487,1763.3,1763.2,13.41017398]
[1746026552661,14.72395487,1763.3,1763.2,2.79254]
[1746026553360,13.58972487,1763.3,1762.9,1.1667]
[1746026553557,4.48337,1763.2,1763.0,10.61763398]
[1746026553757,2.782,1763.1,1763.0,10.61763398]
[1746026553958,1.13443,1762.9,1762.8,2.79278]
[1746026554158,1.13443,1762.9,1762.8,6.62078]
[1746026554359,1.13443,1762.9,1762.8,17.23841398]
[1746026554558,3.87553,1762.9,1762.8,17.23841398]
[1746026554755,5.06973,1762.9,1762.8,17.23841398]
[1746026555158,5.06973,1762.9,1762.8,13.41041398]
[1746026555358,5.06973,1762.9,1762.8,11.75211398]
[1746026555662,2.2876,1762.9,1762.8,11.75211398]
[1746026555962,4.96641,1763.0,1762.9,1.13443]
[1746026556162,4.96641,1763.0,1762.9,13.40956398]
[1746026556359,4.96641,1763.0,1762.9,2.79193]
[1746026556660,6.65771,1763.0,1762.9,2.79193]
[1746026558661,3.832,1763.0,1762.9,13.40956398]
[1746026559162,4.96637,1763.0,1762.9,13.40956398]
[1746026559363,3.832,1763.0,1762.9,13.40956398]
[1746026559657,1.13437,1763.0,1762.9,13.40956398]
[1746026559961,5.10205,1763.1,1763.0,1.13437]
[1746026560160,1.13437,1763.0,1762.7,6.0442]
[1746026560356,2.81447,1763.0,1762.9,11.75200398]
[1746026560763,2.81447,1763.0,1762.9,1.13437]
[1746026561459,2.81447,1763.0,1762.9,1.13443]
[1746026561663,1.13437,1763.0,1762.9,11.75206398]
[1746026561962,7.25395,1763.1,1763.0,1.13437]
[1746026562166,8.94395,1763.1,1763.0,13.51290398]
[1746026562358,8.94395,1763.1,1763.0,2.89527]
[1746026562754,1.13437,1763.0,1762.9,1.1344]
[1746026562957,1.1345,1762.8,1762.7,4.3423]
[1746026563357,7.7771,1762.8,1762.7,14.95993398]
[1746026563765,7.7771,1762.8,1762.7,16.72083398]
[1746026565656,7.7771,1762.8,1762.7,13.51303398]
[1746026565871,6.6426,1762.8,1762.7,13.51303398]
[1746026566365,7.7771,1762.8,1762.7,13.51303398]
[1746026566568,6.6426,1762.8,1762.7,13.51303398]
[1746026566767,7.7771,1762.8,1762.7,13.51303398]
[1746026567061,6.6426,1762.8,1762.7,13.51303398]
[1746026567367,7.7771,1762.8,1762.7,13.51303398]
[1746026567966,6.6426,1762.8,1762.7,13.51303398]
[1746026568668,7.7771,1762.8,1762.7,13.51303398]
[1746026569762,6.6426,1762.8,1762.7,13.51303398]
[1746026570370,1.1345,1762.9,1762.8,1.13444]
[1746026570669,4.9665,1762.9,1762.8,13.49937398]
[1746026571167,4.9665,1762.9,1762.8,17.32737398]
[1746026573164,3.832,1762.9,1762.8,17.32737398]
[1746026573364,6.51216,1763.1,1763.0,1.13437]
[1746026573571,10.33216,1763.1,1763.0,11.75200398]
[1746026573873,10.33216,1763.1,1763.0,1.13437]
[1746026574468,7.1243,1763.1,1763.0,11.75200398]
[1746026574865,7.1243,1763.1,1763.0,13.46040398]
[1746026575372,7.1243,1763.1,1763.0,17.28840398]
[1746026575672,7.1243,1763.1,1763.0,3.828]
[1746026575865,7.1243,1763.1,1763.0,4.96237]
[1746026576266,7.1243,1763.1,1763.0,1.13437]
[1746026577171,7.1243,1763.1,1763.0,11.75200398]
[1746026577769,8.7475,1763.1,1763.0,11.75200398]
[1746026578175,8.7475,1763.1,1763.0,15.58000398]
[1746026578573,8.7475,1763.1,1763.0,3.828]
[1746026579174,1.13437,1763.0,1762.9,1.13441]
[1746026579477,1.13463,1762.6,1762.5,1.13467]
[1746026579671,1.13463,1762.6,1762.5,2.76127]
[1746026579869,1.13461,1762.7,1762.6,1.13456]
[1746026580070,4.91421,1762.7,1762.6,11.75219398]
[1746026581477,4.9545,1762.8,1762.7,1.13456]
[1746026581683,3.82,1762.8,1762.7,13.37879398]
[1746026581881,4.9545,1762.8,1762.7,13.37879398]
[1746026582177,4.9545,1762.8,1762.7,17.20679398]
[1746026582573,6.554,1762.8,1762.7,3.828]
[1746026582780,6.554,1762.8,1762.7,4.96256]
[1746026583172,6.554,1762.8,1762.7,1.13456]
[1746026584481,6.554,1762.8,1762.7,11.75219398]
[1746026584482,5.4195,1762.8,1762.7,11.75219398]
[1746026584681,5.85562487,1762.9,1762.8,1.1345]
[1746026584979,8.58719,1763.3,1763.2,1.13424]
[1746026585173,9.67562487,1763.4,1763.3,1.13418]
[1746026585371,9.67562487,1763.4,1763.3,11.75181398]
[1746026585774,3.82,1763.4,1763.3,11.75181398]
[1746026585976,3.82,1763.4,1763.3,13.49351398]
[1746026586282,3.82,1763.4,1763.3,17.32151398]
[1746026586975,6.66181,1763.4,1763.3,3.828]
[1746026587174,6.66181,1763.4,1763.2,1.13422]
[1746026587175,1.13418,1763.3,1763.2,1.13422]
[1746026587378,4.87538,1763.3,1763.2,1.13422]
[1746026587681,4.87538,1763.3,1763.2,11.75185398]
[1746026587881,3.7412,1763.3,1763.2,11.75185398]
[1746026588072,3.7412,1763.3,1763.2,15.57985398]
[1746026588476,3.82,1763.4,1763.3,1.13418]
[1746026588684,4.95411,1763.4,1763.3,13.37831398]
[1746026588979,6.71281,1763.4,1763.3,13.37831398]
[1746026589179,6.71281,1763.4,1763.3,17.20631398]
[1746026589986,5.5787,1763.4,1763.3,17.20631398]
[1746026590170,3.82,1763.4,1763.3,17.20631398]
[1746026590682,4.3419,1763.5,1763.4,1.13411]
[1746026590883,8.1609,1763.5,1763.4,13.37824398]
[1746026591079,8.16085,1763.5,1763.4,17.20624398]
[1746026591289,3.819,1763.5,1763.4,17.20624398]
[1746026591581,4.95305,1763.5,1763.4,17.20624398]
[1746026593183,6.56355,1763.5,1763.4,17.20624398]
[1746026593482,3.819,1763.5,1763.4,17.20624398]
[1746026595483,4.95305,1763.5,1763.4,17.20624398]
[1746026596386,3.819,1763.5,1763.4,17.20624398]
[1746026597085,4.95305,1763.5,1763.4,17.20624398]
[1746026597587,3.819,1763.5,1763.4,17.20624398]
[1746026598183,4.95305,1763.5,1763.4,17.20624398]
[1746026599482,6.70795,1763.5,1763.4,6.58861]
[1746026599789,6.70795,1763.5,1763.4,17.20624398]
[1746026600290,5.5739,1763.5,1763.4,17.20624398]
[1746026600490,5.85562487,1763.7,1763.5,1.13405]
[1746026600684,3.819,1763.8,1763.7,1.13392]
[1746026600886,3.819,1763.8,1763.7,6.92352]
[1746026601087,1.13376,1764.0,1763.9,1.13379]
[1746026601390,1.13376,1764.0,1763.9,11.75142398]
[1746026601588,2.82266,1764.0,1763.9,1.13379]
[1746026602783,11.65962487,1764.1,1764.0,1.13373]
[1746026602989,9.67262487,1764.1,1764.0,13.42126398]
[1746026603186,5.8085,1764.3,1764.2,1.1336]
[1746026603488,3.817,1764.4,1764.3,1.13353]
[1746026603789,4.95047,1764.4,1764.3,13.42856398]
[1746026604088,6.3953,1764.4,1764.3,2.81093]
[1746026604888,9.6031,1764.4,1763.8,6.0423]
[1746026605097,1.13365,1764.2,1764.1,10.61763398]
[1746026605390,6.04182,1764.2,1763.9,10.61763398]
[1746026605692,1.13379,1763.9,1763.8,2.81125]
[1746026606093,1.13379,1763.9,1763.8,13.42888398]
[1746026606688,1.6388,1763.9,1763.8,13.42888398]
[1746026607395,2.77259,1763.9,1763.8,13.42888398]
[1746026607890,1.6388,1763.9,1763.8,13.42888398]
[1746026608294,2.77259,1763.9,1763.8,13.42888398]
[1746026608496,1.13385,1763.8,1763.7,40.8]
[1746026608793,3.72035,1763.8,1763.7,41.93392]
[1746026609092,7.53635,1763.8,1763.7,41.93392]
[1746026609294,4.7637,1763.8,1763.7,54.16185398]
[1746026609495,4.7637,1763.8,1763.7,13.36185398]
[1746026610195,4.7637,1763.8,1763.7,17.18985398]
[1746026611189,6.4679,1763.8,1763.7,13.36185398]
[1746026611597,7.60175,1763.8,1763.7,13.36185398]
[1746026611988,6.4679,1763.8,1763.7,13.36185398]
[1746026612497,7.60175,1763.8,1763.7,1.13392]
[1746026613096,1.13398,1763.6,1763.5,2.7312]
[1746026613285,3.2078,1763.6,1762.8,3.2078]
[1746026613487,1.13424,1763.2,1763.1,10.61763398]
[1746026613688,1.13422,1763.3,1763.2,1.13418]
[1746026613898,3.73089,1763.3,1763.2,1.13424]
[1746026614092,3.816,1763.5,1763.4,1.13411]
[1746026614389,5.85562487,1763.6,1763.5,1.13405]
[1746026614594,10.5494,1763.8,1763.7,1.13392]
[1746026614796,7.3416,1763.8,1763.7,1.13392]
[1746026614997,8.47545,1763.8,1763.7,2.73112]
[1746026615397,7.3416,1763.8,1763.7,2.73112]
[1746026616300,8.47545,1763.8,1763.7,2.73112]
[1746026618399,7.3416,1763.8,1763.7,2.73112]
[1746026618595,8.47545,1763.8,1763.7,2.73112]
[1746026619104,7.3416,1763.8,1763.7,2.73112]
[1746026620101,8.47545,1763.8,1763.7,2.73112]
[1746026620297,1.13396,1763.7,1763.6,1.13392]
[1746026620502,4.94989,1763.8,1763.7,11.75148398]
[1746026620897,4.94989,1763.8,1763.7,1.13385]
[1746026621098,6.68899,1763.8,1763.7,1.13385]
[1746026622002,6.68899,1763.8,1763.7,11.75148398]
[1746026622301,4.94985,1763.8,1763.7,11.75148398]
[1746026622699,6.61115,1763.8,1763.7,11.75148398]
[1746026622913,6.61115,1763.8,1763.7,1.13385]
[1746026623212,1.13398,1763.7,1763.6,1.13393]
[1746026623517,2.79528,1763.7,1763.6,1.13393]
[1746026623710,2.79528,1763.7,1763.6,11.75156398]
[1746026624210,2.79528,1763.7,1763.6,13.47996398]
[1746026624403,1.13405,1763.5,1763.4,4.34186]
[1746026625111,3.67255,1763.5,1763.4,4.34186]
[1746026625310,3.67255,1763.5,1763.4,8.16986]
[1746026626116,3.67255,1763.5,1763.4,4.34186]
[1746026626413,3.67255,1763.5,1763.4,1.13406]
[1746026626607,3.67255,1763.5,1763.4,2.85236]
[1746026627106,0.937,1763.5,1763.4,17.29799398]
[1746026627502,2.07105,1763.5,1763.4,17.29799398]
[1746026627708,0.937,1763.5,1763.4,17.29799398]
[1746026627908,2.07105,1763.5,1763.4,6.68036]
[1746026628108,3.72625,1763.5,1763.4,6.68036]
[1746026628915,2.5922,1763.5,1763.4,17.29799398]
[1746026629216,2.13468,1763.6,1763.5,1.13405]
[1746026629514,2.13468,1763.6,1763.5,2.74605]
[1746026630011,2.13468,1763.6,1763.5,13.36368398]
[1746026630211,2.13468,1763.6,1763.5,17.19168398]
[1746026631820,3.82078,1763.6,1763.5,17.19168398]
[1746026632219,3.82078,1763.6,1763.5,6.57405]
[1746026633524,3.82078,1763.6,1763.5,3.828]
[1746026634023,22.42016487,1763.6,1762.8,3.2078]
[1746026634224,1.13443,1763.0,1762.9,11.75202398]
[1746026634519,4.94837,1763.0,1762.9,11.75202398]
[1746026634714,1.1345,1762.8,1762.7,18.62786935]
[1746026634917,1.1345,1762.8,1762.7,29.24550333]
[1746026635122,1.1345,1762.8,1762.7,33.07350333]
[1746026635316,2.8014,1762.8,1762.7,33.07350333]
[1746026635731,2.8014,1762.8,1762.7,14.44563398]
[1746026636016,3.814,1763.0,1762.9,1.13443]
[1746026636221,4.94837,1763.0,1762.9,11.75206398]
[1746026636522,6.61527,1763.0,1762.9,1.13443]
[1746026637118,6.61527,1763.0,1762.9,4.96243]
[1746026637321,7.59717,1763.0,1762.9,4.96243]
[1746026638122,1.13443,1762.9,1762.8,2.75455]
[1746026638524,7.59722,1763.0,1762.9,1.13443]
[1746026638825,7.59722,1763.0,1762.9,11.75206398]
[1746026639023,7.59722,1763.0,1762.9,2.85763]
[1746026639218,7.59722,1763.0,1762.9,6.68563]
[1746026639417,7.59722,1763.0,1762.9,5.5512]
[1746026639726,7.59722,1763.0,1762.9,3.828]
[1746026640222,1.1345,1762.8,1762.7,1.13455]
[1746026640423,1.13456,1762.7,1762.6,6.0656]
[1746026640623,2.89516,1762.7,1762.6,6.0656]
[1746026640923,2.07925,1762.8,1762.7,1.13456]
[1746026641124,2.07925,1762.8,1762.7,2.90126]
[1746026641323,2.07925,1762.8,1762.7,13.51889398]